[Event "*** Titled Tuesday 3|2 Blitz (Late)"]
[Site "Chess.com"]
[Date "2016.11.01"]
[Round "9"]
[White "Alexander_Moskalenko"]
[Black "Izoria123"]
[Result "1/2-1/2"]
[WhiteElo "2664"]
[BlackElo "2589"]
[TimeControl "180+2"]
[EndTime "19:02:36 PDT"]
[Termination "Game drawn by repetition"]

1. d4 {[%clk 0:03:02]} 1... Nf6 {[%clk 0:02:58.7]} 2. Bf4 {[%clk 0:03:03.4]}
2... c5 {[%clk 0:02:55.4]} 3. e3 {[%clk 0:02:59.5]} 3... Qb6 {[%clk 0:02:54.9]}
4. Nc3 {[%clk 0:02:59.9]} 4... cxd4 {[%clk 0:02:50.8]} 5. exd4 {[%clk
0:02:57.7]} 5... d6 {[%clk 0:02:50.2]} 6. Nf3 {[%clk 0:02:56.2]} 6... g6 {[%clk
0:02:49.2]} 7. Bb5+ {[%clk 0:02:49.3]} 7... Bd7 {[%clk 0:02:49.6]} 8. a4 {[%clk
0:02:50.1]} 8... a6 {[%clk 0:02:25.9]} 9. a5 {[%clk 0:02:51]} 9... Qd8 {[%clk
0:02:27]} 10. Bxd7+ {[%clk 0:02:49.9]} 10... Nbxd7 {[%clk 0:02:28.9]} 11. O-O
{[%clk 0:02:51.4]} 11... Bg7 {[%clk 0:02:29.5]} 12. Re1 {[%clk 0:02:44.8]} 12...
O-O {[%clk 0:02:30.6]} 13. Qd2 {[%clk 0:02:43.3]} 13... Re8 {[%clk 0:02:30.5]}
14. Bh6 {[%clk 0:02:40.7]} 14... Rc8 {[%clk 0:02:28.5]} 15. Bxg7 {[%clk
0:02:31.2]} 15... Kxg7 {[%clk 0:02:30.4]} 16. h3 {[%clk 0:02:32.2]} 16... Rc4
{[%clk 0:02:22.4]} 17. Nd1 {[%clk 0:02:25.4]} 17... e6 {[%clk 0:02:16.2]} 18.
Ne3 {[%clk 0:02:26.4]} 18... Rc8 {[%clk 0:02:16.3]} 19. c4 {[%clk 0:02:22.7]}
19... d5 {[%clk 0:01:51.8]} 20. c5 {[%clk 0:02:23.1]} 20... Nb8 {[%clk
0:01:52.7]} 21. b4 {[%clk 0:02:23.3]} 21... Nc6 {[%clk 0:01:53.3]} 22. Ng4
{[%clk 0:02:02.1]} 22... Nxg4 {[%clk 0:01:30.3]} 23. hxg4 {[%clk 0:02:04]} 23...
h6 {[%clk 0:01:31.3]} 24. Ne5 {[%clk 0:02:05.1]} 24... Na7 {[%clk 0:01:32]} 25.
Re3 {[%clk 0:01:53.6]} 25... f6 {[%clk 0:01:32.5]} 26. Nd3 {[%clk 0:01:50.3]}
26... g5 {[%clk 0:01:29.3]} 27. Rae1 {[%clk 0:01:47.2]} 27... Qd7 {[%clk
0:01:28]} 28. f4 {[%clk 0:01:44.9]} 28... Nb5 {[%clk 0:01:26.9]} 29. Nf2 {[%clk
0:01:37.3]} 29... gxf4 {[%clk 0:01:22.1]} 30. Rh3 {[%clk 0:01:32.5]} 30... e5
{[%clk 0:01:22.6]} 31. g3 {[%clk 0:01:25.9]} 31... Nxd4 {[%clk 0:00:36.6]} 32.
gxf4 {[%clk 0:01:25.4]} 32... Ne6 {[%clk 0:00:38.1]} 33. fxe5 {[%clk 0:01:19.3]}
33... Ng5 {[%clk 0:00:39.3]} 34. exf6+ {[%clk 0:01:20.8]} 34... Kf7 {[%clk
0:00:40.3]} 35. Rhe3 {[%clk 0:01:20.7]} 35... Rxe3 {[%clk 0:00:39.7]} 36. Qxe3
{[%clk 0:01:14.9]} 36... Re8 {[%clk 0:00:24.5]} 37. Qxe8+ {[%clk 0:01:08.5]}
37... Qxe8 {[%clk 0:00:26.4]} 38. Rxe8 {[%clk 0:01:09.8]} 38... Kxe8 {[%clk
0:00:28.3]} 39. b5 {[%clk 0:01:11.5]} 39... axb5 {[%clk 0:00:27]} 40. c6 {[%clk
0:01:13]} 40... bxc6 {[%clk 0:00:28.3]} 41. a6 {[%clk 0:01:13.7]} 41... Ne6
{[%clk 0:00:29.9]} 42. a7 {[%clk 0:01:14.6]} 42... Nc7 {[%clk 0:00:31.5]} 43.
Nd3 {[%clk 0:01:06.3]} 43... Kf7 {[%clk 0:00:32.6]} 44. Kf2 {[%clk 0:01:04.4]}
44... Kxf6 {[%clk 0:00:33.5]} 45. Nb4 {[%clk 0:01:06.1]} 45... Ke5 {[%clk
0:00:29.2]} 46. Nxc6+ {[%clk 0:00:58.9]} 46... Ke4 {[%clk 0:00:26]} 47. Ke2
{[%clk 0:00:59.8]} 47... d4 {[%clk 0:00:20.7]} 48. Nb4 {[%clk 0:00:58.1]} 48...
Na8 {[%clk 0:00:18.4]} 49. Kd2 {[%clk 0:00:59.5]} 49... Kf4 {[%clk 0:00:19]} 50.
Kd3 {[%clk 0:00:55.5]} 50... Kxg4 {[%clk 0:00:20.4]} 51. Kxd4 {[%clk 0:00:50.8]}
51... h5 {[%clk 0:00:20.8]} 52. Kc5 {[%clk 0:00:45.8]} 52... h4 {[%clk
0:00:21.8]} 53. Nd5 {[%clk 0:00:45.5]} 53... h3 {[%clk 0:00:20.7]} 54. Ne3+
{[%clk 0:00:46.7]} 54... Kf3 {[%clk 0:00:21.2]} 55. Nf1 {[%clk 0:00:46.3]} 55...
Kf2 {[%clk 0:00:21.8]} 56. Nh2 {[%clk 0:00:47.4]} 56... Kg3 {[%clk 0:00:23.2]}
57. Nf1+ {[%clk 0:00:48.5]} 57... Kf2 {[%clk 0:00:24.2]} 58. Nh2 {[%clk
0:00:48.8]} 58... Kg2 {[%clk 0:00:25.4]} 59. Ng4 {[%clk 0:00:49.8]} 59... Kg3
{[%clk 0:00:26.7]} 60. Ne3 {[%clk 0:00:50.7]} 60... Kf3 {[%clk 0:00:26.9]} 61.
Nf1 {[%clk 0:00:51.9]} 61... b4 {[%clk 0:00:27.6]} 62. Kxb4 {[%clk 0:00:52]}
62... Kg2 {[%clk 0:00:27.9]} 63. Ne3+ {[%clk 0:00:35.1]} 63... Kf2 {[%clk
0:00:27.8]} 64. Ng4+ {[%clk 0:00:33.3]} 64... Kf3 {[%clk 0:00:28]} 65. Nh2+
{[%clk 0:00:34.1]} 65... Kf2 {[%clk 0:00:28.1]} 66. Kc5 {[%clk 0:00:33.3]} 66...
Kg2 {[%clk 0:00:29.4]} 67. Ng4 {[%clk 0:00:18.7]} 67... Kg3 {[%clk 0:00:30.5]}
68. Ne3 {[%clk 0:00:18.6]} 68... Kf3 {[%clk 0:00:31.2]} 69. Nf1 {[%clk
0:00:19.5]} 69... Kf2 {[%clk 0:00:32.4]} 70. Nh2 {[%clk 0:00:20.2]} 70... Kg2
{[%clk 0:00:33.7]} 71. Ng4 {[%clk 0:00:21.3]} 71... Kg3 {[%clk 0:00:34.9]} 72.
Ne3 {[%clk 0:00:22]} 72... Kf3 {[%clk 0:00:35.7]} 73. Nf1 {[%clk 0:00:23.1]}
73... Kf2 {[%clk 0:00:37]} 74. Nh2 {[%clk 0:00:23.3]} 74... Kg2 {[%clk
0:00:38.3]} 75. Ng4 {[%clk 0:00:08.3]} 75... Kf3 {[%clk 0:00:38.3]} 76. Nh2+
{[%clk 0:00:05.9]} 76... Kg3 {[%clk 0:00:39.2]} 77. Nf1+ {[%clk 0:00:06.9]}
77... Kg2 {[%clk 0:00:39.1]} 78. Ne3+ {[%clk 0:00:07.8]} 78... Kf2 {[%clk
0:00:40.4]} 79. Ng4+ {[%clk 0:00:05.8]} 79... Kg3 {[%clk 0:00:41.7]} 80. Ne3
{[%clk 0:00:07]} 80... Kf2 {[%clk 0:00:40.1]} 81. Ng4+ {[%clk 0:00:05.1]} 81...
Kf3 {[%clk 0:00:41.3]} 82. Nh2+ {[%clk 0:00:04.3]} 82... Kg3 {[%clk 0:00:42]}
83. Nf1+ {[%clk 0:00:05.3]} 83... Kf2 {[%clk 0:00:43.3]} 84. Nh2 {[%clk
0:00:04.8]} 84... Kg2 {[%clk 0:00:44.5]} 85. Ng4 {[%clk 0:00:04.8]} 85... Kg3
{[%clk 0:00:45.6]} 86. Ne3 {[%clk 0:00:04.1]} 86... Kf3 {[%clk 0:00:46.8]} 87.
Nf1 {[%clk 0:00:04.7]} 87... Kf2 {[%clk 0:00:48]} 88. Nh2 {[%clk 0:00:04.1]}
1/2-1/2

[Event "*** Titled Tuesday 3|2 Blitz (Late)"]
[Site "Chess.com"]
[Date "2016.11.01"]
[Round "9"]
[White "jposthuma"]
[Black "KingFlorida"]
[Result "0-1"]
[WhiteElo "2179"]
[BlackElo "2297"]
[TimeControl "180+2"]
[EndTime "19:02:47 PDT"]
[Termination "KingFlorida won by resignation"]

1. d4 {[%clk 0:03:02]} 1... Nf6 {[%clk 0:02:59.9]} 2. c4 {[%clk 0:03:02.3]} 2...
e5 {[%clk 0:03:01.4]} 3. dxe5 {[%clk 0:03:02.9]} 3... Ng4 {[%clk 0:03:02]} 4.
Bf4 {[%clk 0:03:04.4]} 4... Nc6 {[%clk 0:02:58.2]} 5. Nf3 {[%clk 0:03:05.2]}
5... Bb4+ {[%clk 0:02:56.2]} 6. Nbd2 {[%clk 0:03:05.8]} 6... Qe7 {[%clk
0:02:55.1]} 7. a3 {[%clk 0:03:03.1]} 7... Bxd2+ {[%clk 0:02:53.5]} 8. Qxd2
{[%clk 0:03:01.8]} 8... Ngxe5 {[%clk 0:02:55.4]} 9. Nxe5 {[%clk 0:03:00.2]} 9...
Nxe5 {[%clk 0:02:57.3]} 10. e3 {[%clk 0:02:56.9]} 10... d6 {[%clk 0:02:54]} 11.
Be2 {[%clk 0:02:52]} 11... O-O {[%clk 0:02:48.8]} 12. O-O {[%clk 0:02:52]} 12...
b6 {[%clk 0:02:46.7]} 13. b4 {[%clk 0:02:18.6]} 13... Bb7 {[%clk 0:02:18]} 14.
Qc3 {[%clk 0:02:11.9]} 14... f6 {[%clk 0:02:07.8]} 15. c5 {[%clk 0:02:04]} 15...
dxc5 {[%clk 0:01:57.5]} 16. bxc5 {[%clk 0:02:03.9]} 16... Rad8 {[%clk
0:01:56.2]} 17. cxb6 {[%clk 0:01:55.2]} 17... axb6 {[%clk 0:01:58.1]} 18. Rac1
{[%clk 0:01:33]} 18... Rd7 {[%clk 0:01:35.3]} 19. Rfd1 {[%clk 0:01:23.4]} 19...
Rfd8 {[%clk 0:01:35.4]} 20. Rxd7 {[%clk 0:01:19.3]} 20... Rxd7 {[%clk
0:01:30.7]} 21. Bxe5 {[%clk 0:01:18.3]} 21... Qxe5 {[%clk 0:01:27.7]} 22. Qb3+
{[%clk 0:00:33.8]} 22... Kh8 {[%clk 0:01:18]} 23. h3 {[%clk 0:00:16]} 23... h5
{[%clk 0:01:14.4]} 24. Qc3 {[%clk 0:00:12]} 24... Qg5 {[%clk 0:01:03.3]} 25. Bf1
{[%clk 0:00:11.4]} 25... Be4 {[%clk 0:00:47.3]} 26. Qb4 {[%clk 0:00:12]} 26...
Qe5 {[%clk 0:00:33.8]} 27. Qf8+ {[%clk 0:00:09.5]} 27... Kh7 {[%clk 0:00:35.3]}
28. Qc8 {[%clk 0:00:08.2]} 28... Re7 {[%clk 0:00:33.3]} 29. Qa6 {[%clk
0:00:06.9]} 29... g5 {[%clk 0:00:34.2]} 30. Qe2 {[%clk 0:00:06.2]} 30... Kh6
{[%clk 0:00:32.9]} 31. Qd2 {[%clk 0:00:05.5]} 31... g4 {[%clk 0:00:31.8]} 32.
hxg4 {[%clk 0:00:06.7]} 32... hxg4 {[%clk 0:00:33.7]} 33. g3 {[%clk 0:00:07.3]}
33... Kg6 {[%clk 0:00:31.6]} 34. Bg2 {[%clk 0:00:07.8]} 34... Bxg2 {[%clk
0:00:32.6]} 35. Kxg2 {[%clk 0:00:09.7]} 35... Qe4+ {[%clk 0:00:34.5]} 36. Kf1
{[%clk 0:00:09.4]} 36... Rh7 {[%clk 0:00:32.4]} 37. Qc2 {[%clk 0:00:07.1]} 37...
Kf5 {[%clk 0:00:16.3]} 38. Ke2 {[%clk 0:00:05.8]} 38... Qxc2+ {[%clk 0:00:16.3]}
39. Rxc2 {[%clk 0:00:07.7]} 39... Ke5 {[%clk 0:00:13.1]} 40. Rc6 {[%clk
0:00:05.6]} 40... f5 {[%clk 0:00:13.7]} 41. Kd3 {[%clk 0:00:05.5]} 41... Rd7+
{[%clk 0:00:14.6]} 42. Ke2 {[%clk 0:00:06.3]} 42... Kd5 {[%clk 0:00:14.3]} 43.
Rf6 {[%clk 0:00:06.9]} 43... Ke5 {[%clk 0:00:15.6]} 44. Rc6 {[%clk 0:00:07.8]}
44... Rf7 {[%clk 0:00:16.9]} 45. a4 {[%clk 0:00:07.5]} 45... Kd5 {[%clk
0:00:17.6]} 46. Rc2 {[%clk 0:00:06.3]} 46... c5 {[%clk 0:00:18]} 47. Kd3 {[%clk
0:00:07.2]} 47... Ra7 {[%clk 0:00:18]} 48. Rb2 {[%clk 0:00:04.4]} 48... Kc6
{[%clk 0:00:11.5]} 49. Ra2 {[%clk 0:00:05]} 49... Re7 {[%clk 0:00:02.7]} 50. Kc4
{[%clk 0:00:04.9]} 50... Re4+ {[%clk 0:00:03.7]} 51. Kc3 {[%clk 0:00:05.6]}
51... Rb4 {[%clk 0:00:05.6]} 52. a5 {[%clk 0:00:05.5]} 52... bxa5 {[%clk
0:00:06.3]} 53. Rxa5 {[%clk 0:00:06.1]} 53... Kd5 {[%clk 0:00:07.1]} 54. Kd3
{[%clk 0:00:06.2]} 54... Rb3+ {[%clk 0:00:08.3]} 55. Ke2 {[%clk 0:00:06.6]}
55... Rb2+ {[%clk 0:00:09.6]} 56. Ke1 {[%clk 0:00:08]} 56... Rc2 {[%clk
0:00:11]} 57. Ra8 {[%clk 0:00:07.6]} 57... Ke4 {[%clk 0:00:12.3]} 58. Rf8 {[%clk
0:00:07.3]} 58... c4 {[%clk 0:00:13.3]} 59. Re8+ {[%clk 0:00:06.7]} 59... Kf3
{[%clk 0:00:12.5]} 60. Re5 {[%clk 0:00:05.4]} 60... Re2+ {[%clk 0:00:12]} 61.
Kd1 {[%clk 0:00:06.5]} 61... Rxf2 {[%clk 0:00:10.6]} 62. Rxf5+ {[%clk
0:00:07.5]} 62... Kxe3 {[%clk 0:00:11]} 63. Rc5 {[%clk 0:00:07.2]} 63... Kf3
{[%clk 0:00:08.5]} 64. Rxc4 {[%clk 0:00:06.4]} 64... Kxg3 {[%clk 0:00:09.3]} 65.
Ke1 {[%clk 0:00:07.7]} 65... Rf8 {[%clk 0:00:08.7]} 66. Rc3+ {[%clk 0:00:06.2]}
66... Kh2 {[%clk 0:00:06.5]} 67. Rc4 {[%clk 0:00:06.1]} 67... g3 {[%clk
0:00:07.6]} 68. Rh4+ {[%clk 0:00:07.5]} 68... Kg1 {[%clk 0:00:08.8]} 69. Rh3
{[%clk 0:00:06.6]} 69... g2 {[%clk 0:00:10]} 70. Ke2 {[%clk 0:00:06.4]} 70...
Re8+ {[%clk 0:00:08.7]} 71. Kd2 {[%clk 0:00:04.7]} 71... Kf2 {[%clk 0:00:08]}
72. Rh2 {[%clk 0:00:05.8]} 72... Kf1 {[%clk 0:00:06.7]} 73. Rh8 {[%clk
0:00:05.3]} 73... Rxh8 {[%clk 0:00:07]} 0-1

[Event "*** Titled Tuesday 3|2 Blitz (Late)"]
[Site "Chess.com"]
[Date "2016.11.01"]
[Round "9"]
[White "SwiftyMcBishop"]
[Black "hardingstoptry"]
[Result "0-1"]
[WhiteElo "2119"]
[BlackElo "2569"]
[TimeControl "180+2"]
[EndTime "19:04:05 PDT"]
[Termination "hardingstoptry won by resignation"]

1. e4 {[%clk 0:03:02]} 1... e5 {[%clk 0:03:00.5]} 2. Nf3 {[%clk 0:02:52.6]} 2...
d6 {[%clk 0:03:02.3]} 3. d4 {[%clk 0:02:53.5]} 3... Nf6 {[%clk 0:03:01.5]} 4.
dxe5 {[%clk 0:02:52.6]} 4... Nxe4 {[%clk 0:03:02.1]} 5. Bd3 {[%clk 0:02:45.5]}
5... Nc5 {[%clk 0:03:01.8]} 6. O-O {[%clk 0:02:45]} 6... Be7 {[%clk 0:02:58.7]}
7. exd6 {[%clk 0:02:43]} 7... Qxd6 {[%clk 0:02:56.9]} 8. Re1 {[%clk 0:02:31.9]}
8... O-O {[%clk 0:02:57.3]} 9. Nc3 {[%clk 0:02:24.9]} 9... Re8 {[%clk
0:02:45.1]} 10. Nb5 {[%clk 0:02:09.1]} 10... Qd8 {[%clk 0:02:42.1]} 11. Bxh7+
{[%clk 0:01:48.7]} 11... Kxh7 {[%clk 0:02:44]} 12. Qxd8 {[%clk 0:01:49.2]} 12...
Rxd8 {[%clk 0:02:36.4]} 13. Rxe7 {[%clk 0:01:35.8]} 13... Rd1+ {[%clk
0:02:36.9]} 14. Re1 {[%clk 0:01:26.8]} 14... Rxe1+ {[%clk 0:02:20.5]} 15. Nxe1
{[%clk 0:01:28.7]} 15... Ne6 {[%clk 0:02:22.4]} 16. Nd3 {[%clk 0:01:21.8]} 16...
Nc6 {[%clk 0:02:13]} 17. Nf4 {[%clk 0:01:03.4]} 17... Ncd8 {[%clk 0:02:04.6]}
18. Be3 {[%clk 0:00:53]} 18... Bd7 {[%clk 0:02:00.5]} 19. Nxe6 {[%clk
0:00:43.8]} 19... Nxe6 {[%clk 0:02:02.4]} 20. Nd4 {[%clk 0:00:45.4]} 20... Kg6
{[%clk 0:01:53.8]} 21. Nf3 {[%clk 0:00:41.3]} 21... Kf5 {[%clk 0:01:52.1]} 22.
Rd1 {[%clk 0:00:37.5]} 22... Bc6 {[%clk 0:01:49.8]} 23. Nd4+ {[%clk 0:00:29.6]}
23... Nxd4 {[%clk 0:01:47.1]} 24. Rxd4 {[%clk 0:00:31.5]} 24... Re8 {[%clk
0:01:46.2]} 25. Rf4+ {[%clk 0:00:29.2]} 25... Kg6 {[%clk 0:01:47.1]} 26. h3
{[%clk 0:00:23.8]} 26... a6 {[%clk 0:01:43.5]} 27. Rg4+ {[%clk 0:00:24.8]} 27...
Kh7 {[%clk 0:01:43.9]} 28. Bd4 {[%clk 0:00:23.8]} 28... f6 {[%clk 0:01:42.1]}
29. Be3 {[%clk 0:00:23.4]} 29... Kg8 {[%clk 0:01:39.9]} 30. Kh2 {[%clk
0:00:19.8]} 30... Kf7 {[%clk 0:01:38.6]} 31. Rd4 {[%clk 0:00:19.7]} 31... b5
{[%clk 0:01:37.1]} 32. Rd2 {[%clk 0:00:18.3]} 32... g5 {[%clk 0:01:35]} 33. Rd3
{[%clk 0:00:19.1]} 33... Ke6 {[%clk 0:01:33.2]} 34. Rc3 {[%clk 0:00:20.1]} 34...
Kd6 {[%clk 0:01:33.9]} 35. Bc5+ {[%clk 0:00:15.5]} 35... Kd5 {[%clk 0:01:32.5]}
36. Be3 {[%clk 0:00:15.1]} 36... a5 {[%clk 0:01:31.2]} 37. Rd3+ {[%clk
0:00:14.1]} 37... Ke6 {[%clk 0:01:29.2]} 38. Bd4 {[%clk 0:00:14]} 38... b4
{[%clk 0:01:28.5]} 39. Re3+ {[%clk 0:00:12.7]} 39... Kf7 {[%clk 0:01:26.5]} 40.
Rxe8 {[%clk 0:00:13.3]} 40... Bxe8 {[%clk 0:01:28.4]} 41. Kg3 {[%clk 0:00:14.7]}
41... Kg6 {[%clk 0:01:23.2]} 42. a3 {[%clk 0:00:14.9]} 42... Kf5 {[%clk
0:01:20.5]} 43. f3 {[%clk 0:00:11.5]} 43... Ke6 {[%clk 0:01:18]} 44. Kg4 {[%clk
0:00:09.4]} 44... Bg6 {[%clk 0:01:16.6]} 45. c3 {[%clk 0:00:09.1]} 45... bxa3
{[%clk 0:01:14.2]} 46. bxa3 {[%clk 0:00:10]} 46... Bf5+ {[%clk 0:01:13.3]} 47.
Kh5 {[%clk 0:00:11.1]} 47... Kf7 {[%clk 0:01:09.8]} 48. Kh6 {[%clk 0:00:12.2]}
48... a4 {[%clk 0:01:04.3]} 49. Kh5 {[%clk 0:00:09]} 49... Bg6+ {[%clk
0:01:00.9]} 50. Kh6 {[%clk 0:00:10.1]} 50... Bf5 {[%clk 0:00:59.9]} 51. Be3
{[%clk 0:00:08.1]} 51... Bd3 {[%clk 0:00:58.6]} 52. g3 {[%clk 0:00:06.7]} 52...
Bf1 {[%clk 0:00:52.8]} 53. h4 {[%clk 0:00:07.7]} 53... gxh4 {[%clk 0:00:53.2]}
54. gxh4 {[%clk 0:00:09.6]} 54... Be2 {[%clk 0:00:52.7]} 55. f4 {[%clk 0:00:11]}
55... Ke6 {[%clk 0:00:51.5]} 56. Kg6 {[%clk 0:00:08.9]} 56... Bd3+ {[%clk
0:00:52.3]} 57. Kh6 {[%clk 0:00:09.3]} 57... Kf5 {[%clk 0:00:49]} 58. h5 {[%clk
0:00:09.3]} 58... Be2 {[%clk 0:00:47.7]} 59. Bd2 {[%clk 0:00:10.1]} 59... c6
{[%clk 0:00:42.7]} 60. Be3 {[%clk 0:00:10.8]} 60... Bf3 {[%clk 0:00:40.5]} 61.
Bd4 {[%clk 0:00:08.9]} 61... Be2 {[%clk 0:00:39.3]} 62. Be3 {[%clk 0:00:07.7]}
62... Bf3 {[%clk 0:00:38.7]} 63. Bd4 {[%clk 0:00:08.8]} 63... Bg4 {[%clk
0:00:37.6]} 64. Kg7 {[%clk 0:00:07.4]} 64... Bxh5 {[%clk 0:00:36.7]} 65. Bxf6
{[%clk 0:00:09]} 65... Kxf4 {[%clk 0:00:36.2]} 66. Kf8 {[%clk 0:00:10.3]} 66...
Ke4 {[%clk 0:00:34.5]} 67. Be7 {[%clk 0:00:10.6]} 67... Kd3 {[%clk 0:00:34.2]}
68. Bf6 {[%clk 0:00:07]} 68... Kc4 {[%clk 0:00:33.3]} 69. Ke7 {[%clk 0:00:04.4]}
69... Kb3 {[%clk 0:00:32.4]} 70. Kd6 {[%clk 0:00:05.7]} 70... Bf3 {[%clk
0:00:30.8]} 71. Kc5 {[%clk 0:00:04.1]} 71... Kxa3 {[%clk 0:00:28.8]} 72. c4
{[%clk 0:00:05.1]} 72... Kb3 {[%clk 0:00:27.9]} 73. Kd4 {[%clk 0:00:05.7]} 73...
a3 {[%clk 0:00:27.4]} 74. Kc5 {[%clk 0:00:06.8]} 74... a2 {[%clk 0:00:27.1]} 75.
Be5 {[%clk 0:00:04.5]} 75... Kc2 {[%clk 0:00:26.5]} 76. Kb4 {[%clk 0:00:05.7]}
76... Kb1 {[%clk 0:00:22.9]} 77. Kb3 {[%clk 0:00:06.4]} 77... a1=Q {[%clk
0:00:22.2]} 78. Bxa1 {[%clk 0:00:07.9]} 78... Kxa1 {[%clk 0:00:24.1]} 79. Ka3
{[%clk 0:00:08.8]} 79... Bd1 {[%clk 0:00:22.7]} 80. Kb4 {[%clk 0:00:10]} 80...
Kb2 {[%clk 0:00:22.2]} 81. Kc5 {[%clk 0:00:10.7]} 81... Bf3 {[%clk 0:00:21.8]}
82. Kb4 {[%clk 0:00:11.6]} 82... Kc2 {[%clk 0:00:21.5]} 83. Kc5 {[%clk
0:00:08.5]} 83... Kc3 {[%clk 0:00:21]} 84. Kd6 {[%clk 0:00:09.7]} 84... Kxc4
{[%clk 0:00:20.6]} 85. Ke5 {[%clk 0:00:11.1]} 85... Kd3 {[%clk 0:00:20.3]} 86.
Kf4 {[%clk 0:00:13]} 86... c5 {[%clk 0:00:20.6]} 87. Kxf3 {[%clk 0:00:14.4]}
87... c4 {[%clk 0:00:22.5]} 88. Kf2 {[%clk 0:00:16]} 88... Kd2 {[%clk
0:00:22.1]} 89. Kf3 {[%clk 0:00:16.7]} 89... c3 {[%clk 0:00:24]} 90. Ke4 {[%clk
0:00:18.6]} 90... c2 {[%clk 0:00:23.9]} 91. Ke5 {[%clk 0:00:20.5]} 91... c1=Q
{[%clk 0:00:23.1]} 92. Ke6 {[%clk 0:00:22.4]} 92... Qc5 {[%clk 0:00:23.6]} 0-1